bitfinex-derivatives/quotes_ETHF0:USTF0_20251012
["timestamp","ask_amount","ask_price","bid_price","bid_amount"]
[1760306789556,3.21588308,4124.9,4124.3,1.2769]
[1760306789752,3.21588308,4124.9,4124.8,3.64383]
[1760306789945,4.96742,4125.9,4125.4,0.43596]
[1760306790250,3.19104345,4125.8,4125.4,3.2078]
[1760306790553,0.00285544,4125.9,4125.8,1.2769]
[1760306791153,5.44e-06,4125.9,4125.8,1.2769]
[1760306791554,3.2078,4127.6,4125.9,0.43591]
[1760306791751,3.2078,4127.6,4126.9,3.2078]
[1760306792053,0.4358,4127.1,4126.5,0.43584]
[1760306792353,1.3237,4127.2,4125.0,1.09001]
[1760306792354,1.3237,4127.2,4126.3,3.64367]
[1760306792563,3.2078,4126.5,4126.3,0.00241345]
[1760306792751,1.3237,4126.4,4126.3,0.00241345]
[1760306793058,4.53143573,4126.4,4126.3,0.00241345]
[1760306793559,1.3237,4127.1,4126.3,3.21021345]
[1760306793758,3.21061045,4127.2,4126.3,3.21021345]
[1760306793759,3.64639045,4127.2,4126.5,0.43584]
[1760306794053,3.64639045,4127.2,4126.3,0.00241345]
[1760306794054,3.64364,4126.7,4126.3,0.00241345]
[1760306794260,1.3237,4126.6,4126.3,0.00241345]
[1760306794555,1.3237,4126.4,4126.3,0.00241345]
[1760306794755,1.3237,4126.4,4124.9,4.92071]
[1760306794756,0.43594,4125.7,4124.9,4.92071]
[1760306794960,1.3237,4125.8,4125.2,0.43598]
[1760306795252,3.18914851,4125.6,4124.9,4.4847]
[1760306795459,3.18914851,4125.7,4125.4,3.2078]
[1760306795658,3.18914851,4125.8,4125.4,3.2078]
[1760306795961,0.4359,4126.1,4125.4,3.64545975]
[1760306796159,1.3237,4126.2,4125.4,3.20949975]
[1760306796355,3.15854649,4126.1,4125.4,3.20949975]
[1760306796567,3.15854649,4126.1,4126.0,0.4359]
[1760306796760,3.2078,4126.5,4126.1,0.43589]
[1760306797064,3.09550547,4126.4,4126.2,0.43587]
[1760306797955,4.41920547,4126.4,4126.2,0.43587]
[1760306798157,0.43589,4126.2,4125.9,3.2078]
[1760306798460,3.10278158,4126.1,4125.9,0.43591]
[1760306798659,3.10278158,4126.1,4126.0,1.2769]
[1760306798855,0.43581,4126.9,4125.4,3.20949975]
[1760306799062,3.2078,4127.0,4126.8,0.43581]
[1760306799261,0.00281045,4127.2,4127.1,1.2769]
[1760306799454,0.00281045,4127.2,4126.6,0.43583]
[1760306799656,3.17101222,4127.1,4126.1,1.2769]
[1760306799856,3.17101222,4127.1,4126.1,1.71278]
[1760306800056,1.3237,4126.6,4125.9,3.2078]
[1760306800564,1.3237,4126.4,4126.1,0.43589]
[1760306800765,3.13924506,4126.5,4125.9,3.2078]
[1760306800963,3.13924506,4126.3,4126.1,0.43589]
[1760306801267,3.2078,4126.7,4125.9,3.2078]
[1760306801268,1.3237,4126.1,4125.9,3.64371]
[1760306802365,0.43587,4126.4,4126.1,0.43589]
[1760306802665,3.11790709,4126.2,4126.1,0.43589]
[1760306802857,3.11790709,4126.2,4126.1,1.71279]
[1760306803167,1.75949,4127.1,4126.9,0.43581]
[1760306803466,1.3237,4127.1,4126.9,0.43581]
[1760306803764,3.19486415,4127.0,4126.9,0.43581]
[1760306804360,0.00281045,4127.2,4127.1,0.43579]
[1760306804761,0.00281045,4127.2,4127.1,1.71249]
[1760306805257,3.64346,4128.3,4127.1,1.71249]
[1760306805258,3.2078,4128.3,4128.2,0.43567]
[1760306805766,3.2078,4128.3,4128.2,1.71237]
[1760306806260,4.48889352,4128.3,4127.4,3.2078]
[1760306806461,4.48889352,4128.3,4126.9,3.2078]
[1760306806462,1.71392,4127.8,4126.9,3.2078]
[1760306806669,0.43569,4128.1,4127.0,1.2767]
[1760306806870,0.4357,4128.0,4127.1,0.43579]
[1760306807067,3.1642363,4128.0,4127.0,1.2767]
[1760306807262,3.1642363,4128.0,4126.6,1.9495727]
[1760306807263,1.2782,4126.9,4126.6,0.43583]
[1760306807463,1.08938,4127.5,4126.4,3.2078]
[1760306807464,1.2782,4126.6,4126.4,3.2078]
[1760306807665,0.4359,4126.1,4125.8,3.64372]
[1760306807864,0.43589,4126.2,4125.9,0.4359]
[1760306808066,1.2782,4126.1,4125.9,0.4359]
[1760306808261,3.12981394,4126.1,4125.9,0.43591]
[1760306808472,11.40484,4129.6,4127.3,0.43576]
[1760306808473,3.2078,4127.7,4127.3,0.43576]
[1760306808669,0.43568,4128.1,4127.0,3.2078]
[1760306808967,3.12981394,4127.6,4127.0,3.2078]
[1760306809265,1.2782,4127.6,4127.0,3.2078]
[1760306809462,0.43574,4127.6,4127.0,3.2078]
[1760306809671,4.48889352,4128.3,4128.1,0.43567]
[1760306809871,0.00289352,4128.3,4128.1,0.43568]
[1760306810066,3.11305549,4128.1,4127.6,0.43573]
[1760306810267,3.54873549,4128.2,4127.7,0.43572]
[1760306810574,3.54873549,4128.2,4126.7,1.28995905]
[1760306810575,1.2782,4127.1,4126.2,3.2078]
[1760306810769,1.2782,4126.5,4125.8,0.8599727]
[1760306810965,3.2078,4126.6,4125.6,3.2078]
[1760306811161,0.4945,4127.2,4126.1,3.2078]
[1760306811162,3.21450733,4127.1,4126.1,3.2078]
[1760306811468,1.2782,4127.0,4126.7,0.43582]
[1760306811665,1.2782,4127.0,4126.8,0.43582]
[1760306811867,3.21450733,4126.9,4126.8,0.43582]
[1760306812071,1.77883,4126.7,4126.6,3.2078]
[1760306812267,3.2078,4126.7,4125.9,3.2078]
[1760306812473,3.2078,4126.7,4125.3,1.28995905]
[1760306812474,3.2078,4126.1,4125.4,3.20949975]
[1760306812873,3.60695226,4126.0,4125.4,3.20949975]
[1760306813176,1.343,4125.5,4125.4,3.20949975]
[1760306813570,4.46457818,4125.5,4125.4,3.20949975]
[1760306814475,3.12157818,4125.5,4125.4,3.64546975]
[1760306814976,3.10628741,4125.7,4125.6,0.43595]
[1760306815167,1.343,4126.1,4125.4,3.20949975]
[1760306815368,3.2078,4126.6,4125.5,0.8599727]
[1760306815571,0.43595,4125.6,4125.4,3.20949975]
[1760306815775,1.343,4125.5,4125.4,3.20949975]
[1760306815974,7.65910616,4125.5,4125.4,0.00169975]
[1760306816373,1.343,4126.1,4125.4,3.20949975]
[1760306816676,3.19184837,4125.8,4125.4,4.06947245]
[1760306816870,0.43594,4125.7,4125.4,3.64545975]
[1760306817071,3.14467582,4126.0,4125.8,0.43592]
[1760306817271,0.43586,4126.5,4126.1,0.43589]
[1760306817479,3.2078,4126.6,4125.9,1.3005156]
[1760306817678,3.14467582,4126.1,4125.9,1.3005156]
[1760306817878,3.58053582,4126.5,4126.1,0.43589]
[1760306818074,3.2078,4126.6,4126.2,0.8646056]
[1760306818075,1.343,4126.3,4126.2,0.8646056]
[1760306818278,4.42776384,4126.3,4126.2,0.8646056]
[1760306818580,1.343,4126.3,4126.2,0.8646056]
[1760306818779,1.77888,4126.2,4126.1,0.8646056]
[1760306818974,1.343,4126.1,4125.9,0.8646056]
[1760306819274,0.43595,4125.7,4125.5,1.3002245]
[1760306819481,4.22871937,4126.0,4125.4,0.00169975]
[1760306819482,3.13894937,4126.0,4125.4,0.00169975]
[1760306819677,3.13894937,4125.6,4125.5,1.74716]
[1760306819874,3.13894937,4126.0,4125.7,0.43593]
[1760306820077,3.13894937,4126.0,4125.9,1.3112]
[1760306820379,3.2078,4126.1,4126.0,1.3112]
[1760306820677,0.43596,4125.5,4125.4,0.00169975]
[1760306820868,0.43605,4124.6,4124.5,1.70757264]
[1760306821072,0.43605,4124.6,4124.4,3.2078]
[1760306821273,3.546602,4124.6,4124.4,3.2078]
[1760306821470,3.110552,4124.6,4124.5,1.3112]
[1760306821676,3.64381,4125.0,4124.4,3.2078]
[1760306821879,3.21047505,4125.0,4124.9,1.3112]
[1760306822278,3.2078,4125.5,4125.0,1.52604]
[1760306822586,3.2078,4125.5,4125.4,0.43597]
[1760306822779,3.2078,4126.1,4125.9,0.43591]
[1760306822976,3.2078,4126.1,4125.6,2.26804]
[1760306823175,0.43601,4125.0,4124.9,1.3112]
[1760306823377,0.00181511,4125.0,4124.9,1.74722]
[1760306823576,3.13792893,4125.0,4124.9,1.3112]
[1760306823779,0.00181511,4125.0,4124.9,1.3112]
[1760306824177,3.2244164,4125.0,4124.7,1.3112]
[1760306824478,0.00181511,4125.0,4124.9,1.74722]
[1760306824787,0.00181511,4125.0,4124.9,1.3112]
[1760306825980,0.43606,4124.6,4124.4,1.7348104]
[1760306826182,0.43604,4124.7,4124.5,1.3112]
[1760306826380,0.43606,4124.6,4124.5,1.3112]
[1760306826688,3.1293631,4124.6,4124.5,1.3112]
[1760306826880,3.1293631,4124.8,4124.7,1.3112]
[1760306827080,0.00181511,4125.0,4124.9,1.3112]
[1760306827481,3.22261693,4125.0,4124.9,1.3112]
[1760306828582,0.00181511,4125.0,4124.9,1.3112]
[1760306829786,0.00181511,4125.0,4124.9,3.04363138]
[1760306829986,0.00181511,4125.0,4124.9,1.3112]
[1760306830188,0.43782511,4125.0,4124.8,0.95692]
[1760306830377,0.43782511,4125.0,4124.4,0.00237902]
[1760306830378,0.43606,4124.6,4124.4,0.00237902]
[1760306830585,0.43606,4124.6,4124.0,1.8321]
[1760306830586,0.43616,4123.6,4123.4,3.04363138]
[1760306830784,1.09019,4124.4,4123.5,1.3112]
[1760306830785,3.2078,4124.1,4123.5,1.3112]
[1760306830984,3.2078,4124.1,4123.3,1.73243138]
[1760306830985,3.2078,4124.1,4123.3,1.3112]
[1760306831185,3.22452454,4124.0,4123.4,0.43617]
[1760306831392,3.22452454,4124.0,4123.2,1.8218]
[1760306831684,3.22452454,4124.0,4123.2,0.00172046]
[1760306831878,0.43614,4123.8,4123.2,0.43792046]
[1760306832078,0.43615,4123.7,4123.3,1.74739]
[1760306832380,3.1885579,4123.7,4123.6,1.3112]
[1760306832581,3.2078,4124.1,4123.8,1.3112]
[1760306832582,3.64391,4124.1,4123.8,1.3112]
[1760306832885,3.1885579,4124.0,4123.8,0.43613]
[1760306833076,0.43618,4123.4,4123.2,1.31292046]
[1760306833282,0.43618,4123.4,4123.2,0.00172046]
[1760306833482,3.11135159,4123.3,4123.2,1.31292046]
[1760306833885,0.43618,4123.4,4123.2,0.00172046]
[1760306834094,3.21354841,4123.3,4122.8,3.2078]
[1760306834494,3.2078,4123.6,4122.8,3.2078]
[1760306834495,0.43623,4123.0,4122.9,1.3112]
[1760306834692,0.43623,4123.0,4122.8,3.64404]
[1760306834693,0.43622,4123.1,4122.8,3.64404]
[1760306834887,3.21354841,4123.0,4122.9,1.3112]
[1760306835086,0.43622,4123.1,4123.0,1.3112]
[1760306835292,0.4362,4123.2,4123.0,1.74742]
[1760306835601,3.19918199,4123.1,4123.0,1.74742]
[1760306835899,0.4362,4123.2,4122.9,0.00232547]
[1760306836099,0.4362,4123.2,4123.0,1.3112]
[1760306836300,3.13691134,4123.1,4123.0,1.3112]
[1760306836703,3.2078,4123.6,4123.0,1.3112]
[1760306836704,3.2078,4123.6,4123.0,1.8321]
[1760306837096,3.13691134,4123.5,4123.4,1.74738]
[1760306837801,1.09022,4124.3,4123.0,0.5209]
[1760306837802,3.2078,4124.1,4123.5,1.3112]
[1760306838002,0.43612,4124.0,4123.8,0.43613]
[1760306838197,3.61629769,4124.0,4123.8,0.43613]
[1760306838394,3.18017769,4124.0,4123.8,0.43613]
[1760306838594,3.18017769,4124.0,4123.7,1.8321]
[1760306838595,3.2078,4124.6,4124.4,0.95697]
[1760306838798,3.2078,4124.6,4124.5,1.3112]
[1760306841400,0.00181511,4125.0,4124.9,1.74722]
[1760306841703,0.00181511,4125.0,4124.2,1.73243138]
[1760306841704,0.43612,4124.0,4123.7,0.95704]
[1760306841999,1.09014,4124.7,4123.1,2.97783138]
[1760306842000,3.14885624,4123.9,4123.1,2.97783138]
[1760306842304,3.2078,4124.1,4123.7,1.2454]
[1760306842305,0.43614,4123.8,4123.7,1.2454]
[1760306842605,3.57435586,4123.8,4123.7,1.2454]
[1760306842993,3.13821586,4123.8,4123.7,1.7543]
[1760306843196,3.64391,4124.1,4124.0,1.2454]
[1760306843699,6.81711975,4124.1,4124.0,1.2454]
[1760306844801,6.38100975,4124.1,4124.0,1.2454]
[1760306845003,3.17320975,4124.1,4124.0,1.2454]
[1760306846197,3.17320975,4124.1,4123.8,1.73243138]
[1760306846198,3.2078,4124.1,4123.8,1.73243138]
[1760306846502,3.08555044,4124.5,4123.9,1.2454]
[1760306846706,0.00181511,4125.0,4124.9,1.68142]
[1760306846907,0.00181511,4125.0,4124.9,4.88922]
[1760306847305,0.00181511,4125.0,4124.9,1.68142]
[1760306847507,0.43603,4124.8,4124.5,1.73240642]
[1760306847694,3.1854474,4125.0,4124.0,0.43611]
[1760306847695,4.5399,4124.7,4124.4,1.73240642]
[1760306847899,0.43608,4124.3,4124.1,1.73240642]
[1760306848104,0.4362,4123.3,4122.9,0.43855547]
[1760306848409,3.12632386,4123.2,4122.9,0.43855547]
[1760306848604,3.12632386,4123.2,4122.9,0.00232547]
[1760306848605,0.43622,4123.0,4122.9,0.00232547]
[1760306848804,1.76832,4123.0,4122.9,0.00232547]
[1760306849011,0.43628,4122.4,4122.3,3.2078]
[1760306849212,1.3321,4122.8,4122.5,0.43627]
[1760306849402,0.43626,4122.7,4122.5,0.43627]
[1760306849703,3.20796393,4122.8,4122.7,1.2454]
[1760306849906,1.3321,4123.6,4122.7,0.00288642]
[1760306850101,0.43624,4122.8,4122.7,0.00288642]
[1760306850303,3.2078,4123.2,4122.9,0.43622]
[1760306850505,3.644,4123.2,4122.9,0.43622]
[1760306850700,4.48286009,4122.8,4122.7,0.00288642]
[1760306850898,1.3321,4122.8,4122.7,0.00288642]
[1760306851102,4.48192245,4122.8,4122.7,0.00288642]
[1760306853114,3.14982245,4122.8,4122.7,0.00288642]
[1760306853418,3.2078,4123.2,4122.8,1.68164]
[1760306853714,3.54798619,4123.1,4122.9,0.43623]
[1760306854007,1.3321,4123.0,4122.8,0.43623]
[1760306854204,3.64401,4123.2,4123.1,1.68161]
[1760306854205,3.2078,4123.2,4123.1,1.68161]
[1760306855608,1.3321,4123.1,4122.7,0.00288642]
[1760306855813,1.76834,4122.9,4122.7,0.00288642]
[1760306856008,1.3321,4122.8,4122.7,0.00288642]
[1760306856209,4.52266208,4122.8,4122.7,0.00288642]
[1760306859612,3.19056208,4122.8,4122.7,1.24828642]
[1760306859811,3.19056208,4122.8,4122.7,0.00288642]
[1760306860017,1.76833,4122.9,4122.7,0.00288642]
[1760306860218,3.09238841,4122.8,4122.7,0.00288642]
[1760306860612,0.43622,4123.1,4122.9,1.2454]
[1760306860917,1.3321,4122.9,4122.7,0.00288642]
[1760306861115,1.3321,4122.9,4122.7,0.43913642]
[1760306861313,3.16753438,4123.1,4122.7,0.00288642]
[1760306861506,3.2078,4123.2,4123.0,1.2454]
[1760306861706,3.2078,4123.2,4122.7,1.09351642]
[1760306861707,2.67438473,4123.2,4122.7,1.09351642]
[1760306861916,2.67438473,4123.2,4123.1,2.9791339]
[1760306862112,0.49381511,4125.0,4123.0,0.43622]
[1760306862113,3.2078,4124.2,4124.1,0.4361]
[1760306862308,0.00181511,4125.0,4124.9,0.43602]
[1760306862610,0.00181511,4125.0,4124.4,0.5089]
[1760306862611,3.2078,4126.2,4126.0,0.4359]
[1760306862918,3.2078,4126.2,4126.1,1.2454]
[1760306863317,3.2078,4126.8,4126.7,1.68123]
[1760306863518,4.97758002,4126.8,4126.7,0.00282072]
[1760306863720,6.36890365,4126.8,4126.7,1.30452072]
[1760306863913,3.20966002,4126.8,4126.7,1.30452072]
[1760306865117,0.00186002,4126.8,4126.7,4.51232072]
[1760306866922,0.00186002,4126.8,4126.7,0.00282072]
[1760306867415,4.46960039,4126.8,4126.7,0.00282072]
[1760306867619,4.46960039,4126.8,4126.7,1.74035072]
[1760306867620,0.00186002,4126.8,4126.7,1.74035072]
[1760306868011,3.2078,4127.6,4127.5,1.3017]
[1760306868213,3.2078,4128.7,4127.9,0.4357]
[1760306868421,3.2078,4128.7,4127.4,0.5391]
[1760306868422,3.2078,4128.7,4128.1,1.3017]
[1760306868619,6.29289091,4128.7,4128.0,0.5391]
[1760306868830,3.2078,4128.7,4128.1,1.3017]
[1760306869016,3.20953287,4128.7,4128.2,0.43567]
[1760306869320,3.20953287,4128.7,4128.4,1.3017]
[1760306869517,3.20953287,4128.7,4128.5,1.3017]
[1760306869723,3.20953287,4128.7,4128.5,0.43563]
[1760306869917,3.20953287,4128.7,4128.6,1.3017]
[1760306870123,0.00173287,4128.7,4128.6,1.3017]
[1760306870426,0.00173287,4128.7,4128.6,1.8408]
[1760306870721,3.2078,4129.4,4128.7,1.08905]
[1760306870915,3.2078,4130.3,4130.0,0.43548]
[1760306871110,3.2078,4130.3,4129.2,3.7469]
[1760306871111,3.2078,4130.3,4130.2,0.43546]
[1760306871317,6.34003133,4130.9,4130.2,1.3017]
[1760306871519,3.2078,4130.9,4130.6,0.43541]
[1760306871823,3.21081446,4130.9,4130.7,1.2315]
[1760306872222,3.21081446,4130.9,4130.8,1.6669]
[1760306872519,3.10342436,4130.8,4130.6,0.00204308]
[1760306872919,3.21081446,4130.9,4130.6,0.00204308]
[1760306873119,3.21081446,4130.9,4130.7,1.2315]
[1760306873822,3.21081446,4130.9,4130.8,1.2315]
[1760306874527,3.21081446,4130.9,4130.8,1.6669]
[1760306875317,3.21081446,4130.9,4130.8,1.2315]
[1760306875726,3.2078,4131.5,4130.8,1.2315]
[1760306875923,3.2078,4132.0,4131.6,0.93271]
[1760306876116,3.2078,4132.0,4131.9,1.2315]
[1760306876520,3.2078,4133.1,4132.7,0.43519]
[1760306876724,3.2078,4133.1,4132.9,0.43518]
[1760306876922,0.50245802,4133.1,4133.0,0.8846]
[1760306877220,1.2529,4133.2,4132.8,3.2078]
[1760306877421,1.4729,4133.3,4132.8,3.2078]
[1760306877628,0.22,4133.3,4132.8,3.2078]
[1760306878021,0.22,4133.3,4133.1,0.43515]
[1760306878022,0.22313944,4133.3,4133.1,0.43515]
[1760306878523,0.22313944,4133.3,4132.8,3.2078]
[1760306878524,0.4928,4134.2,4134.0,0.43505]
[1760306878717,1.2529,4134.5,4134.2,0.43504]
[1760306879033,1.2529,4134.5,4134.3,0.43503]
[1760306879323,0.43495,4135.1,4134.3,0.43503]
[1760306879324,0.4928,4135.2,4134.9,0.43497]
[1760306879525,1.7457,4135.2,4135.1,3.2078]
[1760306879720,1.2529,4135.8,4135.1,3.2078]
[1760306879920,1.2529,4135.8,4135.7,3.2078]
[1760306880320,3.7006,4137.0,4134.3,0.00253778]
[1760306880321,0.43494,4135.1,4134.3,0.00253778]
[1760306880528,1.2529,4135.1,4135.0,3.2078]
[1760306881234,1.6879,4134.6,4134.5,3.2078]
[1760306881526,0.4928,4134.9,4134.5,3.2078]
[1760306881734,1.7457,4134.9,4134.5,3.2078]
[1760306881933,0.4928,4134.9,4134.5,3.2078]
[1760306882226,1.6879,4134.6,4134.5,3.2078]
[1760306884027,1.2529,4134.6,4134.5,3.2078]
[1760306884222,0.4928,4134.9,4134.8,0.43498]
[1760306884622,0.4928,4134.9,4134.5,3.2078]
[1760306884623,1.2529,4134.7,4134.5,3.2078]
[1760306884831,0.43498,4134.8,4134.5,3.2078]
[1760306885320,1.2529,4134.6,4134.5,3.2078]
[1760306886224,1.6879,4134.6,4134.5,3.2078]
[1760306888432,1.68792,4134.4,4134.3,0.00253778]
[1760306888725,7.97304471,4134.4,4134.3,1e-08]
[1760306888931,4.76524471,4134.4,4134.3,1e-08]
[1760306889523,4.33022471,4134.4,4134.3,1e-08]
[1760306889929,7.53802471,4134.4,4134.3,1e-08]
[1760306891223,7.53802471,4134.4,4131.3,1.08836]
[1760306891224,0.43522,4132.5,4132.2,3.2078]
[1760306891429,0.43523,4132.4,4132.2,3.2078]
[1760306891624,1.2529,4132.3,4132.2,3.2078]
[1760306892335,1.2552566,4132.3,4132.2,3.2102667]
[1760306892733,4.42042912,4132.3,4132.2,3.2102667]
[1760306892931,1.2529,4132.0,4131.7,3.2078]
[1760306893131,1.2529,4131.8,4131.7,3.2078]
[1760306893831,4.37416339,4131.8,4131.7,3.20977576]
[1760306894437,1.2529,4131.8,4131.7,3.20977576]
[1760306894831,0.4928,4132.2,4131.7,3.20977576]
[1760306895036,0.43528,4132.0,4131.7,3.20977576]
[1760306895336,1.2529,4131.9,4131.7,3.64507576]
[1760306895929,0.43529,4131.9,4131.7,3.20977576]
[1760306896129,1.2529,4131.8,4131.7,0.00197576]
[1760306896330,1.08826,4131.7,4131.1,3.2078]
[1760306896531,1.68826,4131.2,4131.1,3.2078]
[1760306897233,1.2529,4131.2,4131.1,3.64317]
[1760306897436,1.2529,4131.2,4131.1,3.64572512]
[1760306897632,1.2529,4131.2,4131.1,3.21035512]
[1760306897847,1.2529,4131.2,4131.1,0.00255512]
[1760306900242,1.2529,4131.2,4131.1,3.21035512]
[1760306903336,4.4607,4131.2,4131.1,0.00255512]
[1760306903540,7.58478155,4131.2,4131.1,0.00255512]
[1760306903838,4.37698155,4131.2,4131.1,0.00255512]
[1760306904334,1.2529,4131.2,4131.1,3.64572512]
[1760306904531,1.2529,4131.2,4131.1,3.21035512]
[1760306904939,1.2529,4131.2,4131.1,0.00255512]
[1760306905641,7.55355189,4131.2,4131.1,0.00255512]
[1760306905934,0.43542,4130.6,4130.5,3.2078]
[1760306906139,1.78692,4130.6,4130.5,3.2078]
[1760306906333,1.78692,4130.6,4129.6,0.43552]
[1760306906334,1.08863,4130.4,4129.6,0.43552]
[1760306906530,1.78702,4129.6,4129.5,3.2078]
[1760306906740,1.78702,4129.6,4129.5,3.21057147]
[1760306907934,1.3515,4129.6,4129.5,3.21057147]
[1760306908136,1.8904,4130.0,4129.9,0.43549]
[1760306909438,0.5389,4130.0,4129.9,0.43549]
[1760306910437,0.5389,4130.5,4130.4,0.43544]
[1760306910637,1.8904,4130.5,4130.4,0.43544]
[1760306913038,1.8904,4130.5,4129.6,3.2078]
[1760306913246,1.78702,4129.6,4129.5,0.00277147]
[1760306913439,1.3515,4129.6,4129.5,0.00277147]
[1760306916244,0.5389,4129.0,4128.6,3.2078]
[1760306916554,1.78705,4129.4,4128.6,3.2078]
[1760306916849,0.5389,4129.5,4129.1,3.2078]
[1760306916850,1.3515,4129.2,4129.1,3.2078]
[1760306917245,1.35371431,4129.2,4129.1,3.21040407]
[1760306919850,1.35371431,4129.2,4128.1,0.19082725]
[1760306919851,0.4357,4128.0,4127.8,3.64351]
[1760306920056,1.3515,4127.9,4127.8,3.2078]
[1760306920963,1.3515,4127.9,4127.8,3.21094298]
[1760306922060,0.9746,4128.0,4127.9,0.4357]
[1760306922061,0.5389,4128.0,4127.9,0.4357]
[1760306922255,0.5389,4128.0,4127.8,3.21094298]
[1760306922256,1.3515,4127.9,4127.8,3.21094298]
[1760306922457,1.3515,4127.9,4127.8,0.00314298]
[1760306928469,4.17969439,4127.9,4127.5,3.2078]
[1760306928665,0.43579,4127.1,4127.0,3.2078]
[1760306928866,0.4967,4127.5,4126.5,3.2078]
[1760306928867,0.43584,4126.6,4126.5,3.2078]
[1760306929163,1.72169,4126.1,4126.0,3.2078]
[1760306929467,1.59832006,4126.1,4126.0,0.00171791]
[1760306929671,4.80311277,4126.1,4126.0,0.00171791]
[1760306929861,1.7825,4125.5,4125.4,3.2078]
[1760306930961,1.7825,4125.5,4125.4,3.20992142]
[1760306933461,1.7838,4126.0,4125.4,4.29984142]
[1760306933671,1.2871,4125.9,4125.8,0.43592]
[1760306935268,1.7958,4125.5,4125.4,3.20992142]
[1760306938871,1.7958,4125.5,4125.4,0.00212142]
[1760306941576,0.5087,4125.5,4125.4,3.20992142]
[1760306941974,1.7958,4125.5,4125.4,3.20992142]
[1760306942870,1.7958,4125.5,4124.5,1.09014]
[1760306942871,4.92510257,4125.5,4124.9,3.2078]
[1760306943072,1.7958,4124.0,4123.9,3.2078]
[1760306943670,1.7958,4124.0,4123.2,0.24252713]
[1760306943671,0.5087,4123.5,4123.4,3.2078]
[1760306943875,1.2871,4123.3,4123.2,0.24252713]
[1760306944183,4.42819142,4123.3,4123.2,0.24462646]
[1760306944377,1.2871,4122.4,4122.3,3.64409]
[1760306944575,1.2871,4122.4,4122.3,3.2078]
[1760306944876,1.2871,4122.4,4122.3,6.95607132]
[1760306945267,1.28982543,4122.4,4122.3,6.95865206]
[1760306945971,0.5087,4123.5,4123.4,0.43618]
[1760306946276,0.5087,4123.5,4122.5,1.09069]
[1760306946277,0.2628,4123.7,4123.2,3.74827132]
[1760306946474,0.5087,4125.0,4123.7,1.09036]
[1760306946683,0.5087,4125.0,4124.7,3.2078]
[1760306946876,0.5087,4125.0,4124.7,3.64384]
[1760306947080,0.5087,4125.0,4124.8,0.43603]
[1760306947081,0.5105775,4125.0,4124.8,0.43603]
[1760306947976,1.2871,4124.9,4124.8,0.43603]
[1760306948181,1.2871,4124.9,4124.7,3.2078]
[1760306948182,0.5105775,4125.0,4124.7,3.2078]
[1760306948371,1.2871,4124.3,4124.2,3.2078]
[1760306951586,3.01589294,4125.2,4125.1,0.436]
[1760306951885,0.5087,4125.5,4125.3,0.43597]
[1760306952384,0.5087,4126.0,4125.9,0.43591]
[1760306952585,10.6787,4126.5,4126.4,0.43586]
[1760306952780,10.6787,4126.5,4126.4,3.64366]
[1760306952781,10.68056059,4126.5,4126.4,3.64366]
[1760306953475,11.96766059,4126.5,4126.4,3.64366]
[1760306953877,10.68056059,4126.5,4126.4,3.64366]
[1760306954181,0.5087,4127.5,4127.4,0.43576]
[1760306954481,0.5087,4127.5,4127.4,3.64356]
[1760306955182,1.08951,4127.0,4126.3,1.29442638]
[1760306955480,0.4359,4126.0,4125.3,3.2078]
[1760306955779,3.2078,4126.7,4126.4,0.43586]
[1760306955978,5.4024943,4127.2,4127.0,0.43579]
[1760306956175,3.2078,4127.2,4126.6,3.2078]
[1760306956476,0.43582,4126.8,4126.6,3.2078]
[1760306956682,0.43584,4126.6,4126.2,1.73030638]
[1760306956883,0.5087,4127.0,4126.1,3.2078]
[1760306956884,1.2871,4126.5,4126.3,0.43587]
[1760306957083,3.52626898,4126.9,4126.5,0.43585]
[1760306957284,1.2871,4126.7,4126.6,3.2078]
[1760306958083,3.2078,4127.2,4126.6,3.2078]
[1760306958283,1.2871,4127.1,4126.6,3.64364]
[1760306958489,1.72292,4126.8,4126.6,3.2078]
[1760306958689,1.2871,4126.7,4126.6,3.2078]
[1760306958982,1.2871,4126.7,4126.1,3.2078]
[1760306958983,0.43587,4126.3,4126.1,3.2078]
[1760306959183,0.43587,4126.3,4125.3,3.04601233]
[1760306959184,1.7958,4126.0,4125.6,1.29442638]
[1760306959387,1.7958,4125.5,4124.9,1.29442638]
[1760306959687,1.2871,4125.1,4124.8,0.43603]
[1760306959877,1.2871,4125.1,4124.9,0.43602]
[1760306960081,1.7231,4125.1,4124.7,0.43604]
[1760306960281,3.64661466,4125.0,4124.6,0.00236754]
[1760306960485,4.15531466,4125.0,4124.7,0.43604]
[1760306960793,1.2871,4124.9,4124.7,0.43604]
[1760306960992,3.12257403,4124.9,4124.8,1.3248]
[1760306961185,1.72314,4124.7,4124.6,0.00236754]
[1760306961381,4.93094,4124.7,4124.6,0.00236754]
[1760306961584,4.46995204,4124.7,4124.6,0.00236754]
[1760306963190,7.67775204,4124.7,4124.6,0.00236754]
[1760306963489,1.3864,4123.7,4123.1,4.93843638]
[1760306963685,0.5073,4123.8,4123.2,0.43619]
[1760306963686,1.3864,4123.3,4123.2,0.43619]
[1760306963882,1.3864,4123.3,4123.2,0.3394]
[1760306964094,4.5942,4123.3,4123.2,0.3394]
[1760306964288,4.5942,4123.3,4123.2,0.34218743]
[1760306964488,4.59641135,4123.3,4123.2,0.34218743]
[1760306964894,7.80456848,4123.3,4123.2,0.34218743]
[1760306965488,1.8226,4123.2,4123.1,0.4554]
[1760306965897,5.03356233,4123.2,4123.1,0.4554]
[1760306966198,1.3864,4122.2,4122.1,3.2078]
[1760306966390,1.3864,4122.2,4122.1,3.20982842]
[1760306966792,0.5073,4122.6,4122.1,3.20982842]
[1760306966997,4.5942,4123.2,4122.6,0.43626]
[1760306967296,0.43622,4123.1,4122.7,0.43625]
[1760306967502,3.08483886,4123.2,4123.0,1.2721]
[1760306967699,3.2078,4123.8,4123.0,0.43622]
[1760306968000,4.5942,4124.3,4123.2,1.7083]
[1760306968199,1.3864,4123.8,4123.2,0.4362]
[1760306968600,3.2078,4124.3,4123.2,1.7083]